fUSD/lending_fUSD_20250708
["ID","MTS","AMOUNT","RATE_DAILY","PERIOD"]
[370360789,1751979066079,-519.36,0.00024931,2]
[370360790,1751979066089,-460.0,0.00024931,2]
[370360791,1751979066099,-460.0,0.00024931,2]
[370360792,1751979066108,-642.17,0.00024931,2]
[370360793,1751979066117,-703.4,0.00024931,2]
[370360794,1751979066126,-460.0,0.00024931,2]
[370360795,1751979066136,-460.0,0.00024931,2]
[370360796,1751979066145,-1167.5,0.00024931,2]
[370360797,1751979066155,-1680.34,0.00024931,2]
[370360798,1751979066164,-460.0,0.00024931,2]
[370360799,1751979066173,-1118.44,0.00024931,2]
[370360800,1751979066183,-460.0,0.00024931,2]
[370360801,1751979066193,-460.0,0.00024931,2]
[370360802,1751979066203,-460.0,0.00024931,2]
[370360803,1751979066212,-460.0,0.00024931,2]
[370360804,1751979066221,-460.0,0.00024931,2]
[370360805,1751979066230,-460.0,0.00024931,2]
[370360806,1751979066240,-460.0,0.00024931,2]
[370360807,1751979066250,-460.0,0.00024931,2]
[370360808,1751979066259,-460.0,0.00024931,2]
[370360809,1751979066268,-460.0,0.00024931,2]
[370360810,1751979066278,-460.0,0.00024931,2]
[370360811,1751979066287,-460.0,0.00024931,2]
[370360812,1751979066296,-545.04,0.00024931,2]
[370360813,1751979066306,-1068.39,0.00024931,2]
[370360814,1751979066316,-460.0,0.00024931,2]
[370360815,1751979066325,-557.47726171,0.00024931,2]
[370360816,1751979066334,-590.52519415,0.00024931,2]
[370360817,1751979066344,-460.0,0.00024931,2]
[370360818,1751979066353,-460.0,0.00024931,2]
[370360819,1751979066362,-460.0,0.00024931,2]
[370360820,1751979066373,-515.2,0.00024931,2]
[370360821,1751979066383,-460.0,0.00024931,2]
[370360822,1751979066392,-460.0,0.00024931,2]
[370360823,1751979066401,-460.0,0.00024931,2]
[370360824,1751979066414,-460.0,0.00024931,2]
[370360825,1751979066423,-460.0,0.00024931,2]
[370360826,1751979066432,-460.0,0.00024931,2]
[370360827,1751979066520,-460.0,0.00024931,2]
[370360828,1751979066530,-644.57,0.00024931,2]
[370360829,1751979066539,-506.62,0.00024931,2]
[370360830,1751979066549,-460.0,0.00024931,2]
[370360831,1751979066559,-1968.44,0.00024931,2]
[370360832,1751979066569,-2728.94,0.00024931,2]
[370360833,1751979066578,-642.0,0.00024931,2]
[370360834,1751979066587,-655.95,0.00024931,2]
[370360835,1751979066597,-693.22,0.00024931,2]
[370360836,1751979066606,-460.0,0.00024931,2]
[370360837,1751979066616,-460.0,0.00024931,2]
[370360838,1751979066627,-460.0,0.00024931,2]
[370360839,1751979066636,-460.0,0.00024931,2]
[370360840,1751979066645,-350.10714461,0.00024931,2]
[370360841,1751979066655,-460.0,0.00024931,2]
[370360842,1751979066664,-460.0,0.00024931,2]
[370360843,1751979066674,-4015.62,0.00024931,2]
[370360844,1751979066683,-460.0,0.00024931,2]
[370360845,1751979066693,-2093.85,0.00024931,2]
[370360846,1751979066703,-460.0,0.00024931,2]
[370360847,1751979066712,-460.0,0.00024931,2]
[370360848,1751979066723,-567.85,0.00024931,2]
[370360849,1751979066943,-460.0,0.00024931,2]
[370360850,1751979066953,-460.0,0.00024931,2]
[370360851,1751979066963,-460.0,0.00024931,2]
[370360852,1751979066973,-460.0,0.00024931,2]
[370360853,1751979066983,-460.0,0.00024931,2]
[370360854,1751979066992,-176.04,0.00024931,2]
[370360855,1751979067001,-277.45102267,0.00024931,2]
[370360856,1751979067011,-460.0,0.00024931,2]
[370360857,1751979067021,-460.0,0.00024931,2]
[370360858,1751979067030,-631.0,0.00024931,2]
[370360859,1751979067039,-4127.49,0.00024931,2]
[370360860,1751979067049,-610.46,0.00024931,2]
[370360861,1751979067060,-460.0,0.00024931,2]
[370360862,1751979067069,-460.0,0.00024931,2]
[370360863,1751979067079,-673.81,0.00024931,2]
[370360864,1751979067088,-460.0,0.00024931,2]
[370360865,1751979067098,-460.0,0.00024931,2]
[370360866,1751979067107,-460.0,0.00024931,2]
[370360867,1751979067116,-460.0,0.00024931,2]
[370360868,1751979067126,-630.33,0.00024931,2]
[370360869,1751979067135,-692.77,0.00024931,2]
[370360870,1751979067145,-460.0,0.00024931,2]
[370360871,1751979067155,-460.0,0.00024931,2]
[370360872,1751979067164,-460.0,0.00024931,2]
[370360873,1751979067174,-460.0,0.00024931,2]
[370360874,1751979067184,-460.0,0.00024931,2]
[370360875,1751979067193,-503.88,0.00024931,2]
[370360876,1751979067203,-2058.35,0.00024931,2]
[370360877,1751979067212,-1324.28,0.00024931,2]
[370360878,1751979067222,-460.0,0.00024931,2]
[370360879,1751979067231,-553.68088505,0.00024931,2]
[370360880,1751979067241,-460.16,0.00024931,2]
[370360881,1751979067252,-460.0,0.00024931,2]
[370360882,1751979067262,-460.0,0.00024931,2]
[370360883,1751979067272,-460.0,0.00024931,2]
[370360884,1751979067282,-460.0,0.00024931,2]
[370360885,1751979067292,-460.0,0.00024931,2]
[370360886,1751979067301,-460.0,0.00024931,2]
[370360887,1751979067310,-694.18,0.00024931,2]
[370360888,1751979067320,-460.0,0.00024931,2]
[370360889,1751979067329,-460.0,0.00024931,2]
[370360890,1751979067339,-460.0,0.00024931,2]
[370360891,1751979067348,-460.0,0.00024931,2]
[370360892,1751979067359,-596.33,0.00024931,2]
[370360893,1751979067371,-529.12,0.00024931,2]
[370360894,1751979067381,-460.0,0.00024931,2]
[370360895,1751979067390,-460.0,0.00024931,2]
[370360896,1751979067399,-982.87,0.00024931,2]
[370360897,1751979067413,-460.0,0.00024931,2]
[370360898,1751979067425,-460.0,0.00024931,2]
[370360899,1751979067435,-460.0,0.00024931,2]
[370360900,1751979067445,-3491.65,0.00024931,2]
[370360901,1751979067456,-1007.2,0.00024931,2]
[370360902,1751979067466,-460.0,0.00024931,2]
[370360903,1751979067475,-460.0,0.00024931,2]
[370360904,1751979067484,-460.0,0.00024931,2]
[370360905,1751979067494,-460.0,0.00024931,2]
[370360906,1751979067503,-460.0,0.00024931,2]
[370360907,1751979067512,-768.49,0.00024931,2]
[370360908,1751979067522,-485.53,0.00024931,2]
[370360909,1751979067532,-469.31,0.00024931,2]
[370360910,1751979067541,-460.0,0.00024931,2]
[370360911,1751979067551,-673.16,0.00024931,2]
[370360912,1751979067561,-460.0,0.00024931,2]
[370360913,1751979067570,-460.0,0.00024931,2]
[370360914,1751979067580,-460.0,0.00024931,2]
[370360915,1751979067590,-460.0,0.00024931,2]
[370360916,1751979067599,-519.97,0.00024931,2]
[370360917,1751979067608,-4397.03,0.00024931,2]
[370360918,1751979067617,-460.0,0.00024931,2]
[370360919,1751979067627,-743.11,0.00024931,2]
[370360920,1751979067636,-460.0,0.00024931,2]
[370360921,1751979067646,-460.0,0.00024931,2]
[370360922,1751979067655,-460.0,0.00024931,2]
[370360923,1751979067664,-460.0,0.00024931,2]
[370360924,1751979067674,-483.8,0.00024931,2]
[370360925,1751979067684,-460.0,0.00024931,2]
[370360926,1751979067693,-555.56,0.00024931,2]
[370360927,1751979067703,-460.0,0.00024931,2]
[370360928,1751979067712,-3274.57,0.00024931,2]
[370360929,1751979067721,-460.0,0.00024931,2]
[370360930,1751979067730,-460.0,0.00024931,2]
[370360931,1751979067740,-460.0,0.00024931,2]
[370360932,1751979067749,-460.0,0.00024931,2]
[370360933,1751979067759,-460.0,0.00024931,2]
[370360934,1751979067769,-586.86,0.00024931,2]
[370360935,1751979067778,-460.0,0.00024931,2]
[370360936,1751979067788,-460.0,0.00024931,2]
[370360937,1751979067798,-460.0,0.00024931,2]
[370360938,1751979067808,-460.0,0.00024931,2]
[370360939,1751979067817,-460.0,0.00024931,2]
[370360940,1751979067827,-1401.11,0.00024931,2]
[370360941,1751979067837,-460.0,0.00024931,2]
[370360942,1751979067847,-460.0,0.00024931,2]
[370360943,1751979067856,-460.0,0.00024931,2]
[370360944,1751979067866,-1902.41,0.00024931,2]
[370360945,1751979067875,-460.0,0.00024931,2]
[370360946,1751979067884,-1022.19,0.00024931,2]
[370360947,1751979067894,-460.0,0.00024931,2]
[370360948,1751979067904,-460.0,0.00024931,2]
[370360949,1751979067914,-460.0,0.00024931,2]
[370360950,1751979067923,-460.0,0.00024931,2]
[370360951,1751979067933,-881.07,0.00024931,2]
[370360952,1751979067942,-1000.0,0.00024931,2]
[370360953,1751979067951,-460.0,0.00024931,2]
[370360954,1751979067961,-460.0,0.00024931,2]
[370360955,1751979067970,-460.0,0.00024931,2]
[370360956,1751979067979,-383.63711578,0.00024931,2]
[370360958,1751979122266,169.29,0.00013699,2]
[370360960,1751979187665,7651.18452408,0.00030136,120]
[370360976,1751979298914,460.0,0.0003013,120]
[370360983,1751979327727,460.0,0.0003013,120]
[370360984,1751979328329,169.84,0.00029159,120]
[370360998,1751979387224,460.0,0.000301,120]
[370360999,1751979419805,660.0,0.00029,120]
[370361143,1751980131837,500.0,0.0003013,120]
[370361144,1751980143993,500.0,0.0003013,120]
[370361152,1751980231475,-521.0,0.00018436,2]
[370361153,1751980231486,-169.29,0.00020187,2]
[370361154,1751980231496,-521.0,0.00021405,6]
[370361155,1751980231506,-33.99273089,0.00021424,2]
[370361156,1751980231586,-270.50726911,0.00021424,2]
[370361157,1751980231597,-107.77296603,0.00021424,2]
[370361158,1751980231644,-197.85703397,0.00021424,2]
[370361159,1751980231654,-150.0,0.00022,2]
[370361160,1751980231664,-2500.0,0.00022341,2]
[370361161,1751980231673,-150.0,0.0002247,2]
[370361162,1751980231683,-300.0,0.00022885,2]
[370361163,1751980231693,-23900.0,0.00022886,2]
[370361164,1751980231704,-150.0,0.0002294,2]
[370361165,1751980231715,-161.59,0.00022976,2]
[370361166,1751980231725,-1083.81,0.00023,2]
[370361167,1751980231736,-156.44,0.00023,2]
[370361168,1751980231746,-250.0,0.00023052,2]
[370361169,1751980231755,-2353.58,0.00023106,2]
[370361170,1751980231764,-200.0,0.00023131,2]
[370361171,1751980231775,-200.0,0.00023139,2]
[370361172,1751980231785,-1852.42,0.00023139,2]
[370361173,1751980231796,-6426.26,0.00023272,2]
[370361174,1751980231804,-992.72,0.00023325,2]
[370361175,1751980231818,-169.84,0.00023327,2]
[370361176,1751980231827,-5000.0,0.00023377,2]
[370361177,1751980231836,-376.0,0.000234,2]
[370361178,1751980231846,-150.0,0.0002341,2]
[370361179,1751980231857,-2500.0,0.00023579,2]
[370361180,1751980231867,-1000.0,0.00023663,2]
[370361181,1751980231877,-207.4,0.0002377,2]
[370361182,1751980231887,-186.73,0.00023836,2]
[370361183,1751980231897,-150.0,0.0002388,2]
[370361184,1751980231906,-2394.59445149,0.000239,10]
[370361185,1751980231916,-167.27,0.00023903,2]
[370361186,1751980231925,-188.85,0.00023995,2]
[370361187,1751980231935,-18017.53147903,0.00024,2]
[370361188,1751980231947,-750.81041459,0.00024,2]
[370361189,1751980231958,-1666.8225,0.00024,2]
[370361190,1751980231987,-320.04246613,0.00024,2]
[370361192,1751980237484,-508.0,0.00018436,2]
[370361193,1751980237495,-583.79314025,0.00024,2]
[370361194,1751980237507,-161.59,0.00024006,2]
[370361195,1751980237519,-826.0,0.00024109,2]
[370361196,1751980237529,-1567.13,0.00024168,2]
[370361197,1751980237541,-812.39,0.00024168,2]
[370361198,1751980237552,-486.0,0.00024168,2]
[370361199,1751980237563,-1624.78,0.00024168,2]
[370361200,1751980237573,-800.12,0.00024168,2]
[370361201,1751980237584,-935.05,0.00024168,2]
[370361202,1751980237593,-2353.58,0.00024261,2]
[370361204,1751980237603,-210.0,0.0002435,2]
[370361206,1751980237612,-521.0,0.00024374,10]
[370361208,1751980237622,-2394.59445144,0.00024383,11]
[370361210,1751980237631,-168.31188655,0.00024399,2]
[370361212,1751980237641,-1000.0,0.000244,9]
[370361214,1751980237650,-1000.0,0.000244,9]
[370361216,1751980237660,-1000.0,0.000244,8]
[370361217,1751980237669,-1000.0,0.000244,8]
[370361219,1751980237679,-1000.0,0.000244,7]
[370361221,1751980237688,-1000.0,0.000244,7]
[370361224,1751980237698,-1000.0,0.000244,7]
[370361227,1751980237707,-1000.0,0.000244,9]
[370361229,1751980237716,-168.31188646,0.00024404,2]
[370361231,1751980237726,-168.31188646,0.00024409,2]
[370361233,1751980237735,-168.31188646,0.00024413,2]
[370361235,1751980237744,-168.31188646,0.00024418,2]
[370361236,1751980237753,-168.31188646,0.00024423,2]
[370361238,1751980237762,-168.31188646,0.00024428,2]
[370361240,1751980237771,-168.31188646,0.00024433,2]
[370361242,1751980237781,-168.31188646,0.00024437,2]
[370361244,1751980237791,-168.31188646,0.00024442,2]
[370361246,1751980237800,-168.31188646,0.00024447,2]
[370361248,1751980237812,-168.31188646,0.00024452,2]
[370361250,1751980237823,-168.31188646,0.00024456,2]
[370361252,1751980237831,-168.31188646,0.00024461,2]
[370361255,1751980237841,-168.31188646,0.00024466,2]
[370361257,1751980237851,-168.31188646,0.00024471,2]
[370361259,1751980237861,-168.31188646,0.00024476,2]
[370361261,1751980237871,-168.31188646,0.0002448,2]
[370361263,1751980237880,-168.31188646,0.00024485,2]
[370361265,1751980237892,-254.5499991,0.0002449,2]
[370361266,1751980237901,-168.31188646,0.0002449,2]
[370361268,1751980237910,-1000.0,0.0002449,2]
[370361270,1751980237920,-2500.0,0.0002449,2]
[370361272,1751980237929,-42069.25847345,0.00024499,2]
[370361274,1751980237939,-2221.7064,0.000245,2]
[370361276,1751980237948,-228.9543,0.000245,2]
[370361278,1751980237958,-150.0,0.00024512,2]
[370361280,1751980237967,-1000.0,0.00024557,2]
[370361282,1751980237976,-5000.0,0.00024557,2]
[370361284,1751980237986,-546.53102652,0.00024557,2]
[370361286,1751980237995,-500.0,0.00024573,2]
[370361288,1751980238004,-837.09214054,0.0002459,3]
[370361290,1751980238014,-210.34477682,0.0002459,3]
[370361292,1751980238024,-152.99,0.0002459,2]
[370361294,1751980238033,-299.87,0.0002459,2]
[370361296,1751980238042,-20081430.50204689,0.00024592,3]
[370361386,1751980240457,-2098.59666316,0.00024592,3]
[370361387,1751980240770,-421583.11800852,0.00024592,3]
[370361405,1751980242566,-552.10264082,0.000245,2]
[370361406,1751980242621,-595.656,0.000245,2]
[370361407,1751980242838,-1404.28873078,0.000245,2]
[370361408,1751980242848,-7982.70341513,0.00024592,3]
[370361636,1751980245026,152.36,0.00013699,2]
[370361677,1751980245397,-152.36,0.00020187,2]
[370361679,1751980245407,-759.76194751,0.00024592,3]
[370362162,1751980274562,153.84,0.00029818,120]
[370362163,1751980397324,2000.0,0.00030132,120]
[370362262,1751981136689,1558.87,0.00030137,120]
[370362264,1751981148351,1558.87,0.00030137,120]
[370362266,1751981162034,1558.88,0.00030137,120]
[370362267,1751981179200,1558.876,0.00030137,120]
[370362271,1751981222027,548.42055727,0.00015,14]
[370362282,1751981373515,152.36,0.00013699,2]
[370362285,1751981431761,-425.18333004,0.00018,2]
[370362286,1751981431818,-467.64641228,0.00018,2]
[370362287,1751981431828,-662.58516528,0.00018,2]
[370362288,1751981431838,-423.7228473,0.000181,2]
[370362289,1751981431850,-250.82889418,0.000181,2]
[370362290,1751981431860,-120.0983166,0.00020951,2]
[370362291,1751981431871,-32.2616834,0.00020951,2]
[370362292,1751981431881,-1671.15374588,0.00021,3]
[370362293,1751981431891,-284.0,0.00022,2]
[370362294,1751981431900,-304.78,0.00022078,2]
[370362295,1751981431908,-300.97,0.00022078,2]
[370362296,1751981431918,-278.0,0.0002247,2]
[370362297,1751981431927,-169.84,0.0002286,2]
[370362298,1751981431937,-761.74976262,0.00022865,2]
[370362299,1751981431965,-238.25023738,0.00022865,2]
[370362300,1751981431975,-168.0,0.00022897,2]
[370362301,1751981431984,-255.30814762,0.0002294,2]
[370362302,1751981431996,-17.69185238,0.0002294,2]
[370362303,1751981432007,-300.0,0.00023124,2]
[370362304,1751981432016,-286.35261519,0.00023124,2]
[370362305,1751981432028,-9.64738481,0.00023124,2]
[370362306,1751981432039,-1501.67761987,0.00023125,2]
[370362307,1751981432051,-1405.5203262,0.00023125,2]
[370362308,1751981432066,-1142.16012369,0.00023125,2]
[370362311,1751981432078,-3499.891615,0.00023125,2]
[370362312,1751981432089,-13075.54732918,0.00023125,2]
[370362313,1751981432100,-933.18302341,0.00023125,2]
[370362314,1751981432111,-2342.01996265,0.00023125,2]
[370362315,1751981432121,-457.52910734,0.0002314,2]
[370362861,1751981437700,-606.4717904,0.0002314,2]
[370362863,1751981437711,-348.13910226,0.0002314,2]
[370362865,1751981437721,-71.09089674,0.00023187,2]
[370362876,1751981437813,-470.80910326,0.00023187,2]
[370362878,1751981437823,-156.44,0.00023263,2]
[370362880,1751981437832,-188.85,0.00023378,2]
[370362882,1751981437841,-267.0,0.0002341,2]
[370362884,1751981437851,-177.66,0.00023438,2]
[370362886,1751981437861,-168.0,0.00023481,2]
[370362888,1751981437871,-2.74891245,0.0002349,2]
[370362966,1751981438582,-165.25108755,0.0002349,2]
[370362968,1751981438592,-1009.96,0.00023568,2]
[370362970,1751981438601,-250.0,0.00023577,2]
[370362972,1751981438611,-901.74,0.00023601,2]
[370362974,1751981438620,-718.12,0.00023605,2]
[370362976,1751981438630,-5000.0,0.00023613,2]
[370362978,1751981438639,-207.4,0.0002377,2]
[370362980,1751981438648,-169.44,0.00023836,2]
[370362982,1751981438658,-153.84,0.00023854,2]
[370362984,1751981438667,-261.0,0.0002388,2]
[370362986,1751981438677,-2530.99433351,0.000239,10]
[370362988,1751981438686,-19533.71546467,0.00024,3]
[370362990,1751981438695,-5000.0,0.00024,5]
[370362991,1751981438703,-837.09214054,0.00024,3]
[370362993,1751981438713,-160.0,0.00024,3]
[370362996,1751981438722,-168.0,0.00024071,2]
[370362998,1751981438731,-2039.56446348,0.00024074,2]
[370362999,1751981438741,-859.23179303,0.00024074,2]
[370363002,1751981438750,-859.23179295,0.00024114,2]
[370363004,1751981438761,-168.0,0.00024121,2]
[370363006,1751981438770,-2530.99433336,0.00024141,10]
[370363008,1751981438779,-415.21253871,0.00024145,2]
[370363010,1751981438789,-268.50167599,0.00024151,2]
[370363012,1751981438798,-859.23179295,0.00024154,2]
[370363014,1751981438807,-162.58281939,0.0002416,2]
[370363016,1751981438816,-151.0,0.0002416,2]
[370363018,1751981438825,-151.0,0.0002416,2]
[370363019,1751981438834,-151.0,0.0002416,2]
[370363020,1751981438844,-151.0,0.0002416,2]
[370363021,1751981438853,-151.0,0.0002416,2]
[370363022,1751981438862,-151.0,0.0002416,2]
[370363023,1751981438871,-151.0,0.0002416,2]
[370363024,1751981438880,-151.0,0.0002416,2]
[370363025,1751981438889,-151.0,0.0002416,2]
[370363026,1751981438898,-151.0,0.0002416,2]
[370363027,1751981438907,-151.0,0.0002416,2]
[370363028,1751981438917,-151.0,0.0002416,2]
[370363030,1751981438927,-151.0,0.0002416,2]
[370363032,1751981438936,-151.0,0.0002416,2]
[370363034,1751981438946,-9999.99,0.00024174,2]
[370363036,1751981438955,-2971.81,0.00024174,2]
[370363038,1751981438964,-2735.06901685,0.00024174,2]
[370363160,1751981440200,-7264.92098315,0.00024174,2]
[370363162,1751981440210,-999.99,0.00024174,2]
[370363164,1751981440220,-9999.99,0.00024174,2]
[370363166,1751981440230,-8923.17,0.00024174,2]
[370363168,1751981440240,-9999.99,0.00024174,2]
[370363170,1751981440250,-150.99,0.00024174,2]
[370363172,1751981440260,-499.99,0.00024174,2]
[370363174,1751981440269,-22214.57,0.00024174,2]
[370363176,1751981440279,-3698.29,0.00024174,2]
[370363178,1751981440289,-299.99,0.00024174,7]
[370363180,1751981440302,-230.44,0.00024174,2]
[370363182,1751981440312,-150.99,0.00024174,2]
[370363184,1751981440321,-1675.39,0.00024174,2]
[370363186,1751981440330,-1211.0,0.00024174,5]
[370363188,1751981440340,-167.27,0.00024189,2]
[370363190,1751981440349,-859.23179295,0.00024194,2]
[370363192,1751981440359,-441.03,0.000242,2]
[370363194,1751981440368,-2039.56446341,0.00024219,2]
[370363196,1751981440377,-859.23179295,0.00024233,2]
[370363198,1751981440387,-859.23179295,0.00024273,2]
[370363200,1751981440396,-1412.14,0.00024297,2]
[370363202,1751981440406,-164.22,0.000243,2]
[370363204,1751981440415,-303.37,0.000243,2]
[370363206,1751981440424,-342.86,0.000243,2]
[370363208,1751981440434,-239.56,0.000243,2]
[370363210,1751981440443,-859.23179295,0.00024313,2]
[370363212,1751981440453,-3860.8578,0.0002434,2]
[370363214,1751981440462,-349.84,0.0002434,2]
[370363216,1751981440472,-521.0,0.00024342,2]
[370363218,1751981440481,-256.0,0.0002435,2]
[370363220,1751981440491,-27855.93206684,0.0002435,2]
[370363527,1751981443962,-34725.77468612,0.0002435,2]
[370363706,1751981445795,-2695.51830513,0.0002435,2]
[370368141,1751981726730,1923.3,0.00017152,2]
[370368164,1751982278618,754.68180408,0.0003,120]
[370368170,1751982424413,152.36,0.00013699,2]
[370368188,1751982632073,-152.36,0.00021918,2]
[370368189,1751982632083,-1200.0,0.00021999,2]
[370368190,1751982632092,-300.0,0.00021999,2]
[370368191,1751982632103,-9183.94032564,0.00022,2]
[370368192,1751982632112,-221.0,0.00022,2]
[370368193,1751982632121,-216.0,0.0002247,2]
[370368194,1751982632130,-153.84,0.00022841,2]
[370368195,1751982632139,-2419.42703738,0.000229,8]
[370368196,1751982632149,-212.0,0.0002294,2]
[370368197,1751982632158,-1000.0,0.00023053,2]
[370368198,1751982632167,-250.0,0.00023056,2]
[370368199,1751982632176,-161.59,0.00023089,2]
[370368200,1751982632185,-531.0,0.00023097,2]
[370368201,1751982632194,-270.95,0.00023107,2]
[370368202,1751982632203,-2419.42703716,0.00023176,8]
[370368203,1751982632212,-445.67,0.00023194,2]
[370368204,1751982632221,-23900.0,0.00023195,2]
[370368205,1751982632230,-978.41,0.00023217,2]
[370368206,1751982632240,-528.0,0.0002341,2]
[370368207,1751982632249,-207.0,0.0002341,2]
[370368208,1751982632259,-528.0,0.00023414,2]
[370368209,1751982632268,-999.99,0.00023417,2]
[370368210,1751982632277,-299.99,0.00023417,7]
[370368211,1751982632287,-195.857061,0.00023417,2]
[370368212,1751982632300,-913.41211062,0.00023417,2]
[370368213,1751982632310,-3235.38541434,0.00023417,2]
[370368214,1751982632321,-141.27541404,0.00023417,2]
[370368215,1751982632330,-485.28023002,0.00023452,9]
[370368216,1751982632360,-285.09046038,0.00023452,9]
[370368217,1751982632371,-1649.05634676,0.00023452,9]
[370368218,1751982632380,-177.66,0.00023491,2]
[370368219,1751982632389,-852.13356375,0.00023524,2]
[370368220,1751982632400,-569.1663606,0.00023524,2]
[370368232,1751982632816,-280.69,0.00023524,2]
[370368233,1751982632852,-6075.00007565,0.00023524,2]
[370368234,1751982632862,-9999.99,0.00023524,2]
[370368235,1751982632872,-150.99,0.00023524,2]
[370368236,1751982632881,-281.03,0.00023524,2]
[370368237,1751982632891,-2000.0,0.000236,2]
[370368238,1751982632900,-528.0,0.0002365,2]
[370368239,1751982632909,-2419.42703716,0.00023728,9]
[370368240,1751982632919,-207.4,0.0002377,2]
[370368241,1751982632929,-171.47,0.00023781,2]
[370368242,1751982632939,-244.65079936,0.00023789,2]
[370368243,1751982632948,-169.44,0.00023836,2]
[370368244,1751982632958,-2338.81,0.00023879,2]
[370368245,1751982632968,-203.0,0.0002388,2]
[370368246,1751982632978,-420.0,0.00023906,2]
[370368247,1751982632988,-1000.0,0.00023929,2]
[370368248,1751982632998,-479.0,0.00023984,2]
[370368249,1751982633008,-2000.0,0.00024,2]
[370368250,1751982633017,-1515.34747495,0.00024,2]
[370368251,1751982633027,-2419.42703716,0.00024003,10]
[370368252,1751982633037,-5595.07723073,0.0002411,2]
[370368253,1751982633050,-35483.7278879,0.0002411,2]
[370368254,1751982633059,-3217.3815,0.0002411,2]
[370368255,1751982633069,-2500.0,0.00024182,2]
[370368256,1751982633079,-5875.48,0.000242,2]
[370368257,1751982633088,-479.0,0.00024221,2]
[370368258,1751982633098,-1919.96529515,0.00024279,10]
[370368259,1751982633121,-499.46174201,0.00024279,10]
[370368260,1751982633131,-479.0,0.00024302,2]
[370368261,1751982633140,-263.0,0.00024307,2]
[370368262,1751982633150,-500.0,0.00024329,2]
[370368263,1751982633160,-199.0,0.0002435,2]
[370368264,1751982633169,-25392.038258,0.00024357,2]
[370368265,1751982633181,-921.16683098,0.00024357,2]
[370368266,1751982633192,-149.37833709,0.00024357,2]
[370368267,1751982633202,-366.03286286,0.00024377,2]
[370368268,1751982633218,-612.37713714,0.00024377,2]
[370368269,1751982633227,-508.853173,0.00024432,4]
[370368270,1751982633236,-602.52740968,0.0002444,2]
[370368271,1751982633245,-1631.6515708,0.0002444,2]
[370368272,1751982633255,-244.47889134,0.0002445,2]
[370368273,1751982633264,-1054.78647092,0.0002445,4]
[370368274,1751982633274,-291.09587004,0.0002445,2]
[370368275,1751982633283,-3020.50591782,0.0002445,2]
[370368276,1751982633292,-160.45316663,0.0002445,2]
[370368277,1751982633302,-4816.94868042,0.0002445,2]
[370368278,1751982633313,-11487.434,0.0002445,2]
[370368281,1751982638102,-3044.92846532,0.0002445,2]
[370368282,1751982638112,-190.03114643,0.0002445,4]
[370368283,1751982638122,-158.45,0.0002445,2]
[370368284,1751982638131,-602.52740957,0.0002446,2]
[370368285,1751982638140,-168.0,0.00024474,2]
[370368286,1751982638149,-602.52740957,0.0002448,2]
[370368287,1751982638158,-409.1746,0.00024482,2]
[370368288,1751982638168,-602.52740957,0.000245,2]
[370368289,1751982638177,-1130.41,0.000245,2]
[370368290,1751982638186,-1457.21104907,0.000245,2]
[370368291,1751982638198,-542.78895093,0.000245,2]
[370368292,1751982638208,-5000.0,0.000245,2]